bitfinex-derivatives/quotes_ETHF0:USTF0_20250602
["timestamp","ask_amount","ask_price","bid_price","bid_amount"]
[1748866465233,4.01205,2485.7,2485.6,0.80429]
[1748866465533,22.65805,2485.7,2485.6,0.80429]
[1748866466032,21.8538,2485.7,2485.6,0.80429]
[1748866467630,3.2078,2485.7,2485.6,5.80429]
[1748866467929,3.2078,2485.7,2485.6,6.99971629]
[1748866468627,3.2078,2485.7,2485.6,8.19538137]
[1748866469632,3.2078,2485.7,2485.6,6.99995508]
[1748866470233,3.2078,2485.7,2485.6,5.80429]
[1748866470939,18.646,2486.0,2485.9,0.80419]
[1748866471632,0.80416,2486.0,2485.9,0.80419]
[1748866471830,19.44916,2486.0,2485.9,0.80419]
[1748866473331,0.80419,2485.9,2485.8,1.48769]
[1748866473530,6.07399,2485.9,2485.8,1.48769]
[1748866474537,5.2698,2485.9,2485.8,1.48769]
[1748866474838,6.07399,2485.9,2485.8,1.48769]
[1748866475225,5.2698,2485.9,2485.8,1.48769]
[1748866475729,6.07399,2485.9,2485.8,1.48769]
[1748866475930,5.2698,2485.9,2485.8,1.48769]
[1748866476737,6.07399,2485.9,2485.8,1.48769]
[1748866481340,6.07399,2485.9,2485.8,2.68575099]
[1748866481638,6.07399,2485.9,2485.8,2.68613128]
[1748866485240,24.71499,2485.9,2485.8,2.68613128]
[1748866486043,24.71499,2485.9,2485.8,1.19844128]
[1748866486244,0.80422,2485.8,2485.7,0.80423]
[1748866486541,0.80422,2485.8,2485.7,2.00384074]
[1748866489440,4.01202,2485.9,2485.8,0.80422]
[1748866489638,5.1358,2486.2,2486.1,0.80412]
[1748866489839,0.80419,2486.0,2485.9,0.80415]
[1748866490042,0.80419,2486.0,2485.9,3.27243868]
[1748866490846,0.80419,2486.0,2485.9,4.47219503]
[1748866491739,0.80419,2486.0,2485.9,3.27260635]
[1748866493348,19.44315,2486.1,2486.0,0.80412]
[1748866493540,0.80415,2486.1,2486.0,0.80412]
[1748866493944,0.80415,2486.1,2486.0,2.00387635]
[1748866494450,0.80415,2486.1,2486.0,1.19975635]
[1748866494637,2.13225,2486.1,2486.0,1.19975635]
[1748866495146,0.80416,2486.0,2485.9,0.80418]
[1748866495346,2.13226,2486.0,2485.9,0.80418]
[1748866495740,0.80416,2486.0,2485.9,0.80418]
[1748866495942,0.80415,2486.1,2486.0,0.80412]
[1748866496147,19.44215,2486.1,2486.0,2.00444389]
[1748866497447,19.44215,2486.1,2486.0,2.64984389]
[1748866498355,18.638,2486.1,2486.0,2.64984389]
[1748866498542,5.1778,2486.2,2486.1,0.80412]
[1748866498743,3.2078,2486.2,2486.1,3.31294389]
[1748866499040,4.01189,2486.2,2486.1,3.31294389]
[1748866499241,4.01189,2486.2,2486.1,3.31277047]
[1748866499852,4.01189,2486.2,2486.1,2.00427047]
[1748866500244,4.01189,2486.2,2486.1,1.20015047]
[1748866500446,5.39989,2486.2,2486.1,1.20015047]
[1748866500752,0.80416,2486.0,2485.9,1.20434221]
[1748866501345,1.45776,2486.0,2485.9,1.20434221]
[1748866501545,0.80422,2485.8,2485.7,0.80423]
[1748866501946,0.80422,2485.8,2485.7,2.00483784]
[1748866502146,0.80422,2485.8,2485.7,1.20060784]
[1748866502351,2.06522,2485.8,2485.7,1.20060784]
[1748866503955,2.06522,2485.8,2485.7,2.00485784]
[1748866505651,2.06522,2485.8,2485.7,1.20060784]
[1748866505951,0.80425,2485.7,2485.6,1.48896]
[1748866506151,2.10595,2485.7,2485.6,2.68859496]
[1748866506653,2.10595,2485.7,2485.6,1.88433496]
[1748866506852,2.10595,2485.7,2485.6,2.68862496]
[1748866507051,2.10595,2485.7,2485.6,1.19963496]
[1748866509255,0.80432,2485.5,2485.4,0.80433]
[1748866509454,19.43932,2485.5,2485.4,0.80433]
[1748866509849,20.70632,2485.5,2485.4,2.00312309]
[1748866511455,20.70632,2485.5,2485.4,3.20208515]
[1748866511653,20.70632,2485.5,2485.4,2.39775515]
[1748866511855,20.70632,2485.5,2485.4,3.20210515]
[1748866513457,20.70632,2485.5,2485.4,2.39775515]
[1748866513852,20.70632,2485.5,2485.4,1.19896206]
[1748866514457,24.76532,2485.5,2485.4,1.19896206]
[1748866514661,30.36802,2485.5,2485.4,0.24809206]
[1748866514961,30.36802,2485.5,2485.4,2.06e-06]
[1748866515161,0.80435,2485.4,2485.3,4.88e-06]
[1748866515358,2.12245,2485.4,2485.3,4.88e-06]
[1748866515660,7.12245,2485.4,2485.3,4.88e-06]
[1748866518163,9.52600406,2485.4,2485.3,4.88e-06]
[1748866518364,4.52600406,2485.4,2485.3,0.80438488]
[1748866518564,2.40355406,2485.4,2485.3,0.80438488]
[1748866519459,2.40355406,2485.4,2485.3,2.08358488]
[1748866519858,3.20790406,2485.4,2485.3,2.08358488]
[1748866520365,2.40355406,2485.4,2485.3,2.08358488]
[1748866520565,21.03755406,2485.4,2485.3,2.08358488]
[1748866521171,18.634,2485.4,2485.3,2.08358488]
[1748866522065,19.43835,2485.4,2485.3,2.08358488]
[1748866524570,18.634,2485.4,2485.3,2.08358488]
[1748866524874,19.43835,2485.4,2485.3,2.08358488]
[1748866525070,19.43835,2485.4,2485.3,0.80438488]
[1748866525973,19.43635,2485.4,2485.3,0.80438488]
[1748866526775,19.43635,2485.4,2485.3,4.88e-06]
[1748866526973,20.70075,2485.4,2485.3,4.88e-06]
[1748866527774,20.70075,2485.4,2485.3,0.80438488]
[1748866528473,19.43635,2485.4,2485.3,0.80438488]
[1748866529177,3.2078,2485.5,2485.4,0.80435]
[1748866529373,21.8388,2485.5,2485.3,4.88e-06]
[1748866529578,0.80435,2485.4,2485.3,4.88e-06]
[1748866529875,1.49095,2485.4,2485.3,4.88e-06]
[1748866530577,1.49095,2485.4,2485.3,0.80438488]
[1748866531578,2.09365,2485.4,2485.3,0.80438488]
[1748866531874,2.09365,2485.4,2485.3,4.88e-06]
[1748866532081,3.44905,2485.4,2485.3,4.88e-06]
[1748866533485,8.44905,2485.4,2485.3,4.88e-06]
[1748866538183,11.65791402,2485.4,2485.3,4.88e-06]
[1748866538478,8.44905,2485.4,2485.3,4.88e-06]
[1748866540182,11.65791402,2485.4,2485.3,4.88e-06]
[1748866540682,8.44905,2485.4,2485.3,4.88e-06]
[1748866541178,26.13205,2485.4,2485.3,4.88e-06]
[1748866541378,7.50305,2485.4,2485.3,4.88e-06]
[1748866541685,26.13205,2485.4,2485.3,4.88e-06]
[1748866546594,31.13205,2485.4,2485.3,4.88e-06]
[1748866547286,34.34091402,2485.4,2485.3,4.88e-06]
[1748866548389,29.34091402,2485.4,2485.3,4.88e-06]
[1748866550281,34.34091402,2485.4,2485.3,4.88e-06]
[1748866550487,29.34091402,2485.4,2485.3,4.88e-06]
[1748866550683,0.80471,2484.3,2484.2,1.20304607]
[1748866550893,22.64051,2484.3,2484.2,3.86707108]
[1748866551187,3.2078,2484.7,2484.6,0.80461]
[1748866551578,21.8358,2484.7,2484.6,0.80461]
[1748866552192,21.8358,2484.7,2484.6,2.13451]
[1748866553086,3.2078,2484.7,2484.6,2.13451]
[1748866553285,21.8358,2484.7,2484.6,2.13451]
[1748866553492,3.2078,2484.7,2484.6,8.32967306]
[1748866553686,19.43854282,2484.9,2484.8,0.80454]
[1748866553886,18.63403282,2484.9,2484.8,0.80454]
[1748866554285,18.63403282,2484.9,2484.8,2.10594]
[1748866554493,0.00603282,2484.9,2484.8,2.10594]
[1748866554693,18.63303282,2484.9,2484.8,2.10594]
[1748866555096,19.43754282,2484.9,2484.8,2.10594]
[1748866557795,19.43754282,2484.9,2484.8,1.3014]
[1748866560499,19.43754282,2484.9,2484.7,0.6866]
[1748866560500,0.80454,2484.8,2484.7,0.6866]
[1748866560893,0.80461,2484.6,2484.5,0.6353]
[1748866561097,4.01241,2484.6,2484.5,0.6353]
[1748866561294,4.01241,2484.6,2484.5,1.9821]
[1748866561598,4.01241,2484.6,2484.5,2.78674]
[1748866561998,22.63741,2484.6,2484.5,2.78674]
[1748866562496,21.8328,2484.6,2484.5,3.98445313]
[1748866562691,2.40728003,2484.8,2484.5,3.17981313]
[1748866562891,18.625,2484.6,2484.5,2.63765313]
[1748866563794,18.625,2484.6,2484.5,2.63814836]
[1748866564000,19.228,2484.6,2484.5,2.63814836]
[1748866564999,19.228,2484.6,2484.5,3.83652525]
[1748866565196,19.228,2484.6,2484.5,5.04279926]
[1748866566889,19.228,2484.6,2484.5,3.8445909]
[1748866567288,20.03261,2484.6,2484.5,3.8445909]
[1748866568997,20.03261,2484.6,2484.5,3.84471479]
[1748866569403,20.03261,2484.6,2484.5,2.6463379]
[1748866569704,20.03261,2484.6,2484.5,3.84483662]
[1748866570093,19.228,2484.6,2484.5,3.84483662]
[1748866571101,20.03261,2484.6,2484.5,3.84483662]
[1748866572802,20.03261,2484.6,2484.5,1.43994]
[1748866573000,20.03261,2484.6,2484.5,2.64646553]
[1748866573201,20.03261,2484.6,2484.5,3.84508931]
[1748866574099,19.228,2484.6,2484.5,3.84508931]
[1748866574703,0.603,2484.6,2484.5,3.84508931]
[1748866575200,1.40761,2484.6,2484.5,3.84508931]
[1748866575407,0.603,2484.6,2484.5,3.84508931]
[1748866577003,0.603,2484.6,2484.5,3.83721512]
[1748866577204,0.603,2484.6,2484.5,3.84514545]
[1748866577609,0.603,2484.6,2484.5,5.21204545]
[1748866579212,1.40761,2484.6,2484.5,5.21204545]
[1748866579409,0.603,2484.6,2484.5,5.21204545]
[1748866581018,0.603,2484.6,2484.5,5.21215548]
[1748866581814,1.40761,2484.6,2484.5,5.21215548]
[1748866582018,1.40761,2484.6,2484.5,2.40531548]
[1748866582316,2.76571,2484.6,2484.5,1.19870614]
[1748866583313,2.76571,2484.6,2484.5,2.00334614]
[1748866583818,2.76571,2484.6,2484.5,1.19870614]
[1748866584618,2.76571,2484.6,2484.5,2.00334614]
[1748866585023,2.76571,2484.6,2484.5,0.80464]
[1748866585318,5.97351,2484.6,2484.5,2.00333072]
[1748866585821,5.97351,2484.6,2484.5,1.19869072]
[1748866586720,6.61711,2484.6,2484.5,1.19869072]
[1748866587410,9.02439003,2484.6,2484.5,1.19869072]
[1748866587816,0.80464,2484.5,2484.4,0.00603282]
[1748866588015,2.81484,2484.5,2484.4,0.00603282]
[1748866588716,2.0102,2484.5,2484.4,0.81070282]
[1748866588923,18.619,2484.5,2484.4,1.20414555]
[1748866589118,18.619,2484.5,2484.4,3.20684883]
[1748866589318,18.619,2484.5,2484.4,4.55854883]
[1748866589619,4.47348003,2484.8,2484.7,0.80458]
[1748866589817,21.02628003,2484.8,2484.7,2.00261328]
[1748866590423,21.83082003,2484.8,2484.7,1.19803328]
[1748866590619,23.83252003,2484.8,2484.7,1.19803328]
[1748866591114,24.43612003,2484.8,2484.7,1.19803328]
[1748866591311,23.63158003,2484.8,2484.7,2.00261328]
[1748866591522,23.63158003,2484.8,2484.7,0.80458]
[1748866591831,21.2243,2484.8,2484.7,0.80458]
[1748866592019,22.02884,2484.8,2484.7,0.80458]
[1748866592526,22.02884,2484.8,2484.7,2.0023845]
[1748866593025,22.02884,2484.8,2484.7,0.80458]
[1748866593321,22.02884,2484.8,2484.7,1.1977893]
[1748866593926,2.09824,2484.8,2484.7,2.0023693]
[1748866594129,19.2206,2484.8,2484.7,2.0023693]
[1748866594420,19.2206,2484.8,2484.7,3.2737693]
[1748866594622,20.02514,2484.8,2484.7,3.2737693]
[1748866594822,20.02514,2484.8,2484.7,2.0023693]
[1748866596723,19.2206,2484.8,2484.7,2.0023693]
[1748866597021,0.6036,2484.8,2484.7,4.48161679]
[1748866597219,0.6036,2484.8,2484.7,3.28382749]
[1748866597428,0.6036,2484.8,2484.7,4.48930761]
[1748866597616,0.6036,2484.8,2484.7,5.68684906]
[1748866597817,0.6036,2484.8,2484.7,6.88438352]
[1748866598016,0.6036,2484.8,2484.7,5.67863603]
[1748866598523,0.6036,2484.8,2484.7,9.47315591]
[1748866599025,0.6036,2484.8,2484.7,11.08139746]
[1748866599622,0.6036,2484.8,2484.7,9.47315591]
[1748866600127,0.6036,2484.8,2484.7,11.08139746]
[1748866600428,0.6036,2484.8,2484.7,10.12439746]
[1748866600628,0.6036,2484.8,2484.7,8.51615591]
[1748866602527,0.6036,2484.8,2484.7,9.72048054]
[1748866602928,0.6036,2484.8,2484.7,7.64240054]
[1748866603126,3.35314,2484.8,2484.7,2.39507591]
[1748866604126,9.01214,2484.8,2484.7,2.39507591]
[1748866604327,9.01214,2484.8,2484.7,0.21293145]
[1748866604522,9.01214,2484.8,2484.7,1.45e-06]
[1748866606226,9.33112029,2484.8,2484.7,1.45e-06]
[1748866606428,9.33112029,2484.8,2484.4,0.00603282]
[1748866606429,0.80464,2484.5,2484.4,0.00603282]
[1748866606733,8.05644,2484.5,2484.4,0.00603282]
[1748866606932,13.05644,2484.5,2484.4,0.00603282]
[1748866607232,14.40854,2484.5,2484.4,0.00603282]
[1748866607628,16.81250342,2484.5,2484.4,2.82e-06]
[1748866607831,14.40854,2484.5,2484.4,2.82e-06]
[1748866608625,15.01224,2484.5,2484.4,2.82e-06]
[1748866609231,17.41387585,2484.5,2484.4,2.82e-06]
[1748866612033,0.80503,2483.3,2483.2,1.20304107]
[1748866612227,0.80506,2483.2,2483.1,2.40529666]
[1748866613030,0.00603282,2483.4,2483.3,0.80503]
[1748866614426,0.00603282,2483.4,2483.2,1.2659]
[1748866614633,0.80503,2483.3,2483.2,1.2659]
[1748866615028,0.80503,2483.3,2483.2,2.07096]
[1748866615532,0.80503,2483.3,2483.1,0.80508]
[1748866615533,0.80507,2483.2,2483.1,0.80508]
[1748866615933,0.8051,2483.1,2483.0,3.52491]
[1748866616236,0.8051,2483.1,2483.0,1.3301]
[1748866616733,0.8051,2483.1,2483.0,2.13523]
[1748866617037,0.80508,2483.2,2483.1,0.80507]
[1748866618233,0.8051,2483.1,2483.0,1.3301]
[1748866618433,0.8051,2483.1,2483.0,2.13521]
[1748866619329,0.80513,2483.0,2482.9,0.00603282]
[1748866620238,5.33383,2483.0,2482.9,0.00603282]
[1748866620932,0.80539,2482.2,2481.8,3.2078]
[1748866621236,18.618,2482.2,2482.1,0.80542]
[1748866621435,0.80537,2482.3,2482.2,0.80539]
[1748866621643,18.618,2482.3,2482.2,0.80539]
[1748866621833,19.42335,2482.3,2482.2,0.80539]
[1748866622025,0.80542,2482.1,2482.0,0.81147282]
[1748866622633,4.01322,2482.1,2482.0,0.00603282]
[1748866623544,3.2078,2482.1,2482.0,0.81148282]
[1748866623935,4.01322,2482.1,2482.0,0.81148282]
[1748866624338,4.01322,2482.1,2482.0,0.00603282]
[1748866625338,22.63422,2482.1,2482.0,0.00603282]
[1748866625936,24.64642,2482.1,2482.0,0.00603282]
[1748866626340,29.64642,2482.1,2482.0,0.00603282]
[1748866626934,24.64942,2482.1,2482.0,0.00603282]
[1748866627134,5.22,2482.1,2482.0,0.81148282]
[1748866627344,3.2078,2482.1,2482.0,0.81148282]
[1748866628141,3.2078,2482.1,2482.0,2.14968282]
[1748866628838,0.6043,2482.1,2482.0,2.14968282]
[1748866629443,0.6043,2482.1,2482.0,7.14968282]
[1748866630344,0.6043,2482.1,2482.0,10.35748282]
[1748866630642,2.01275,2483.1,2482.7,0.80522]
[1748866630643,3.2078,2483.1,2482.7,0.80522]
[1748866630848,3.2078,2483.1,2483.0,0.80512]
[1748866631739,4.01289,2483.1,2483.0,0.80512]
[1748866631940,3.2078,2483.1,2483.0,0.80512]
[1748866632135,3.2078,2483.1,2482.8,2.6678]
[1748866632347,0.80516,2482.9,2482.8,2.6678]
[1748866632651,3.2078,2483.1,2482.9,0.80515]
[1748866632652,4.01291,2483.1,2482.9,0.80515]
[1748866632942,3.2078,2483.1,2482.8,2.6678]
[1748866633142,0.4038,2483.0,2482.9,0.80514]
[1748866633642,0.00603282,2483.4,2483.3,0.80503]
[1748866633838,0.00603282,2483.4,2483.3,4.84703]
[1748866634235,0.00603282,2483.4,2483.3,6.14543]
[1748866635941,2.82e-06,2483.4,2483.3,6.14543]
[1748866636144,2.82e-06,2483.4,2483.3,11.14543]
[1748866636544,2.82e-06,2483.4,2483.3,12.32734293]
[1748866638139,2.82e-06,2483.4,2483.3,13.92268362]
[1748866638344,2.82e-06,2483.4,2483.3,12.32734293]
[1748866638556,5.33661,2484.9,2483.9,4.02414]
[1748866638746,5.33661,2484.9,2484.8,0.80454]
[1748866638747,22.70631,2484.9,2484.8,0.80454]
[1748866638947,22.70631,2484.9,2484.3,5.21951]
[1748866638948,0.80455,2484.8,2484.7,0.80455]
[1748866639247,0.80459,2484.7,2484.6,0.80458]
[1748866640148,0.80461,2484.6,2484.5,0.80461]
[1748866640347,0.80459,2484.7,2484.6,0.80459]
[1748866640745,2.15605,2484.8,2484.7,0.80457]
[1748866640950,0.80459,2484.7,2484.6,0.80458]
[1748866641944,2.15606,2484.8,2484.7,0.80457]
[1748866642145,3.21383282,2484.9,2484.8,0.80454]
[1748866642345,4.01834282,2484.9,2484.8,0.80454]
[1748866642743,3.21383282,2484.9,2484.8,0.80454]
[1748866642948,4.01834282,2484.9,2484.8,0.80454]
[1748866643149,3.21383282,2484.9,2484.8,0.80454]
[1748866644047,0.00603282,2484.9,2484.8,4.84454]
[1748866644253,0.00603282,2484.9,2484.8,6.23074]
[1748866644859,0.00603282,2484.9,2484.8,2.19074]
[1748866645157,0.81054282,2484.9,2484.8,0.80454]
[1748866645552,0.80454,2484.8,2484.7,5.50927]
[1748866645952,0.80454,2484.8,2484.7,1.46927]
[1748866646149,0.80457,2484.7,2484.6,0.80459]
[1748866646355,0.80463,2484.6,2484.5,4.8446]
[1748866647960,2.10179,2484.7,2484.6,0.8046]
[1748866648562,1.2972,2484.7,2484.6,0.8046]
[1748866648761,3.21383282,2484.9,2484.8,0.80454]
[1748866648958,4.60723282,2484.9,2484.7,0.80455]
[1748866649155,3.21383282,2484.9,2484.8,0.80454]
[1748866649352,3.21383282,2484.9,2484.5,7.40358]
[1748866649353,0.80458,2484.8,2484.5,5.392]
[1748866649554,4.01836282,2484.9,2484.8,0.80454]
[1748866649857,5.41176282,2484.9,2484.8,0.80454]
[1748866650058,4.60723282,2484.9,2484.8,0.80454]
[1748866650460,0.00603282,2484.9,2484.8,0.80454]
[1748866651166,0.81054282,2484.9,2484.8,2.09854]
[1748866651454,0.81054282,2484.9,2484.7,0.6962]
[1748866651659,0.80454,2484.8,2484.7,1.50075]
[1748866651859,0.81056282,2484.9,2484.8,0.80454]
[1748866652056,0.00603282,2484.9,2484.8,0.80454]
[1748866652254,0.00603282,2484.9,2484.8,2.09854]
[1748866660658,3.21383282,2484.9,2484.4,4.73733282]
[1748866660855,0.80461,2484.7,2484.6,0.80458]
[1748866661067,0.80464,2484.6,2484.5,0.80462]
[1748866661257,0.80464,2484.5,2484.4,0.81070282]
[1748866662565,2.05942,2484.6,2484.5,0.80464]
[1748866662963,0.80464,2484.5,2484.4,0.00603282]
[1748866663165,2.05944,2484.5,2484.4,0.00603282]
[1748866663661,1.2548,2484.5,2484.4,0.81070282]
[1748866664567,7.05944,2484.5,2484.4,0.00603282]
[1748866665964,1.2548,2484.5,2484.4,0.81070282]
[1748866666170,20.71044,2484.5,2484.4,0.81070282]
[1748866666467,20.71044,2484.5,2484.4,1.99946129]
[1748866666865,20.71044,2484.5,2484.4,0.00603282]
[1748866667961,2.05944,2484.5,2484.4,0.00603282]
[1748866668163,20.70844,2484.5,2484.4,0.00603282]
[1748866670384,20.70144,2484.5,2484.4,0.00603282]
[1748866673380,25.70144,2484.5,2484.4,0.00603282]
[1748866675089,20.68844,2484.5,2484.4,0.00603282]
[1748866675282,20.69044,2484.5,2484.4,0.00603282]
[1748866675688,3.2078,2484.6,2484.5,0.80464]
[1748866676189,3.2078,2484.6,2484.5,2.82704]
[1748866677084,4.0124,2484.6,2484.5,2.82704]
[1748866677287,3.2078,2484.6,2484.5,2.82704]
[1748866677595,18.65203282,2484.9,2484.5,2.0224]
[1748866677783,0.80459,2484.7,2484.6,0.80457]
[1748866678281,0.80459,2484.7,2484.6,1.99239787]
[1748866678688,0.80457,2484.8,2484.7,0.80454]
[1748866678884,0.80457,2484.8,2484.7,2.12324]
[1748866679090,0.80457,2484.8,2484.7,1.3187]
[1748866679389,0.80457,2484.8,2484.7,2.12327]
[1748866680093,0.00603282,2484.9,2484.8,0.80454]
[1748866680391,0.81054282,2484.9,2484.8,1.48694]
[1748866681893,0.00603282,2484.9,2484.8,2.67460584]
[1748866682094,0.00603282,2484.9,2484.8,6.72560584]
[1748866682692,2.82e-06,2484.9,2484.8,13.0602147]
[1748866682992,2.82e-06,2484.9,2484.8,15.86622333]
[1748866683193,2.82e-06,2484.9,2484.8,14.26343]
[1748866683494,2.82e-06,2484.9,2484.8,12.18309596]
[1748866684094,2.82e-06,2484.9,2484.8,13.37065452]
[1748866684597,2.82e-06,2484.9,2484.8,15.77093869]
[1748866686602,2.82e-06,2484.9,2484.8,14.58338013]
[1748866687399,2.82e-06,2484.9,2484.8,15.77044456]
[1748866688193,2.82e-06,2484.9,2484.8,13.37016039]
[1748866689702,2.82e-06,2484.9,2484.8,14.96910178]
[1748866690390,2.82e-06,2484.9,2484.8,13.37016039]
[1748866690595,2.82e-06,2484.9,2484.8,12.18309596]
[1748866690804,2.82e-06,2484.9,2484.8,14.96785689]
[1748866692598,2.82e-06,2484.9,2484.8,5.19297802]
[1748866692803,2.82e-06,2484.9,2484.8,8.0443448]
[1748866693101,2.82e-06,2484.9,2484.8,8.37150215]
[1748866693698,2.82e-06,2484.9,2484.8,3.9943448]
[1748866693893,2.82e-06,2484.9,2484.8,6.7230448]
[1748866694200,2.82e-06,2484.9,2484.8,5.53694]
[1748866694405,0.80451282,2484.9,2484.8,1.48694]
[1748866694606,0.80451282,2484.9,2484.8,4.85454]
[1748866694802,0.80451282,2484.9,2484.8,0.80454]
[1748866695503,2.82e-06,2484.9,2484.8,0.80454]
[1748866695808,1.26500282,2484.9,2484.8,0.80454]
[1748866697103,0.80454,2484.8,2484.7,0.80456]
[1748866697399,1.48744,2484.8,2484.7,0.80456]
[1748866697806,0.80457,2484.7,2484.6,4.85458]
[1748866698007,2.19367,2484.7,2484.6,4.05]
[1748866698209,2.87927,2484.7,2484.6,4.8546]
[1748866698712,2.0747,2484.7,2484.6,4.8546]
[1748866699209,2.87927,2484.7,2484.6,4.8546]
[1748866699410,6.08707,2484.7,2484.6,4.05]
[1748866699801,10.2825,2484.7,2484.4,0.00603282]
[1748866700013,0.80464,2484.5,2484.4,0.00603282]
[1748866700709,23.9145,2484.7,2484.6,0.8046]
[1748866701810,2.87927,2484.7,2484.6,0.8046]
[1748866702707,2.0747,2484.7,2484.6,0.8046]
[1748866703305,2.87927,2484.7,2484.6,0.8046]
[1748866704619,1.3891,2484.7,2484.6,0.8046]
[1748866705021,0.6829,2484.8,2484.7,0.80457]
[1748866705811,1.48744,2484.8,2484.7,0.80457]
[1748866706015,0.8046,2484.7,2484.6,0.80458]
[1748866706316,0.8046,2484.7,2484.4,2.01769282]
[1748866706317,0.80463,2484.5,2484.4,0.00603282]
[1748866706507,0.80463,2484.5,2484.4,0.81070282]
[1748866706709,0.80463,2484.5,2484.4,1.99935052]
[1748866707212,2.13693,2484.6,2484.5,0.80463]
[1748866708212,2.13693,2484.6,2484.4,1.99933052]
[1748866708213,0.80463,2484.5,2484.4,1.99933052]
[1748866708516,2.13693,2484.5,2484.4,0.81068282]
[1748866709911,2.13693,2484.5,2484.4,0.00603282]
[1748866710317,7.73973,2484.5,2484.4,0.00603282]
[1748866711714,0.80482,2483.9,2483.8,4.85581]
[1748866712117,21.48272,2484.0,2483.9,0.80482]
[1748866713409,20.6779,2484.0,2483.7,3.21383282]
[1748866713614,0.80486,2483.8,2483.7,4.01871282]
[1748866714017,22.6899,2484.0,2483.9,0.80482]
[1748866714018,21.4827,2484.0,2483.9,0.80482]
[1748866714218,2.0319,2484.0,2483.9,0.80482]
[1748866714414,1.3489,2484.0,2483.9,0.80482]
[1748866715920,19.2854,2484.2,2484.1,0.80476]
[1748866716218,0.6324,2484.2,2484.1,0.80476]
[1748866716414,1.9909,2484.2,2484.1,0.80476]
[1748866717220,3.8106,2484.5,2484.4,0.80466]
[1748866717422,5.1691,2484.5,2484.4,0.80466]
[1748866718420,3.8106,2484.5,2484.4,0.80466]
[1748866720020,3.8106,2484.5,2484.4,2.17516]
[1748866720324,3.8106,2484.5,2484.4,6.23616]
[1748866721629,0.6028,2484.5,2484.4,6.23616]
[1748866722932,0.6028,2484.5,2484.4,7.42862419]
[1748866723531,0.6028,2484.5,2484.4,10.63642419]
[1748866723732,0.6028,2484.5,2484.4,11.82829454]
[1748866725132,0.6028,2484.5,2484.4,13.03082417]
[1748866725826,0.6028,2484.5,2484.4,11.82829454]
[1748866726923,0.6028,2484.5,2484.4,10.63583035]
[1748866727827,0.6028,2484.5,2484.4,3.200209]
[1748866728230,0.6028,2484.5,2484.4,4.39377283]
[1748866728833,0.6028,2484.5,2484.4,3.19009418]
[1748866729228,2.72933,2484.5,2484.4,3.19009418]
[1748866729832,0.6028,2484.5,2484.4,3.19009418]
[1748866730035,0.6028,2484.5,2484.4,8.43829418]
[1748866730736,0.6028,2484.5,2484.4,7.24473035]
[1748866731527,0.6028,2484.5,2484.4,8.43823561]
[1748866732232,0.6028,2484.5,2484.4,12.49823561]
[1748866732833,0.6028,2484.5,2484.4,8.43823561]
[1748866733038,0.6028,2484.5,2484.4,12.49823561]
[1748866734833,0.6028,2484.5,2484.4,11.30473035]
[1748866735039,0.6028,2484.5,2484.4,12.49799513]
[1748866738935,0.6028,2484.5,2484.4,11.30473035]
[1748866739239,0.6028,2484.5,2484.4,12.49784676]
[1748866739940,2.82e-06,2484.9,2484.8,0.80453]
[1748866740631,2.82e-06,2484.9,2484.8,1.99759438]
[1748866740938,2.82e-06,2484.9,2484.8,6.05759438]
[1748866741533,2.82e-06,2484.9,2484.8,8.04939438]
[1748866741734,2.82e-06,2484.9,2484.8,8.04922356]
[1748866742533,2.82e-06,2484.9,2484.8,9.2522631]
[1748866742734,2.82e-06,2484.9,2484.8,11.25702356]
[1748866743538,2.82e-06,2484.9,2484.8,13.63974039]
[1748866743739,2.82e-06,2484.9,2484.8,9.91302356]
[1748866744035,2.82e-06,2484.9,2484.8,6.8096378]
[1748866744240,1.39270282,2484.9,2484.8,10.8506378]
[1748866744932,1.39270282,2484.9,2484.8,10.44935523]
[1748866745132,2.19720282,2484.9,2484.8,10.44935523]
[1748866745435,2.19720282,2484.9,2484.8,1.19289356]
[1748866745638,0.8046,2484.7,2484.6,0.80458]
[1748866746138,0.8046,2484.6,2484.5,2.40902424]
[1748866746339,1.4579,2484.6,2484.5,2.40902424]
[1748866747345,1.4579,2484.6,2484.5,1.60441424]
[1748866748237,6.4579,2484.6,2484.5,1.60441424]
[1748866748444,0.6533,2484.6,2484.5,0.80463]
[1748866748846,0.6533,2484.6,2484.5,2.03777717]
[1748866749145,1.4579,2484.6,2484.5,2.03777717]
[1748866749442,2.033,2484.6,2484.5,2.03777397]
[1748866750748,2.8376,2484.6,2484.5,2.03777397]
[1748866750948,2.033,2484.6,2484.5,2.03777397]
[1748866751247,2.8376,2484.6,2484.5,1.23314397]
[1748866751641,7.8376,2484.6,2484.5,1.23314397]
[1748866751939,0.80463,2484.5,2484.4,1.19187035]
[1748866752245,5.94703,2484.5,2484.4,1.19187035]
[1748866752444,10.94703,2484.5,2484.4,1.19187035]
[1748866752645,10.94703,2484.5,2484.4,0.14647035]
[1748866753041,0.80473,2484.2,2484.1,1.20423981]
[1748866753241,4.01253,2484.2,2484.1,1.20423981]
[1748866753443,0.80476,2484.1,2484.0,0.80478]
[1748866753642,0.80482,2484.0,2483.9,0.80481]
[1748866753948,0.80482,2484.0,2483.8,3.2078]
[1748866753949,0.80482,2483.9,2483.8,4.01263]
[1748866754150,1.9194,2483.9,2483.8,4.01263]
[1748866754851,2.72422,2483.9,2483.8,4.01263]
[1748866756439,2.72422,2483.9,2483.8,0.80483]
[1748866756644,0.80486,2483.8,2483.7,4.85289282]
[1748866756846,1.2558,2483.8,2483.7,4.85289282]
[1748866757450,2.06066,2483.8,2483.7,4.85289282]
[1748866757752,2.06066,2483.8,2483.7,0.00603282]
[1748866757953,2.66446,2483.8,2483.7,0.00603282]
[1748866758661,0.80499,2483.4,2483.3,1.20206629]
[1748866758952,4.01279,2483.4,2483.3,1.20206629]
[1748866759148,9.01279,2483.4,2483.3,1.20206629]
[1748866760350,8.2078,2483.4,2483.1,0.00603282]
[1748866760545,0.80505,2483.2,2483.1,0.00603282]
[1748866760752,19.44205,2483.2,2483.1,0.00603282]
[1748866761950,20.72755,2483.2,2483.1,0.00603282]
[1748866762257,20.72755,2483.2,2483.1,0.81111282]